bitfinex-derivatives/quotes_BTCF0:USTF0_20240905
["timestamp","ask_amount","ask_price","bid_price","bid_amount"]
[1725535796915,0.28802,56814.0,56813.0,0.006]
[1725535799910,0.64882,56814.0,56813.0,0.006]
[1725535801422,0.6659756,56814.0,56813.0,0.006]
[1725535801722,0.7659756,56814.0,56813.0,0.006]
[1725535802324,0.8539856,56814.0,56813.0,0.006]
[1725535803220,0.176036,56809.0,56808.0,0.00026403]
[1725535803411,0.6908623,56809.0,56808.0,0.00026403]
[1725535803616,1.3792716,56809.0,56808.0,0.00026403]
[1725535803817,0.8511916,56809.0,56808.0,0.00026403]
[1725535804315,0.7511916,56809.0,56808.0,0.00026403]
[1725535804710,0.7551916,56809.0,56808.0,0.00026403]
[1725535805523,1.2872716,56809.0,56808.0,0.00026403]
[1725535805827,0.7591916,56809.0,56808.0,0.00026403]
[1725535806208,1.8872716,56809.0,56808.0,0.00026403]
[1725535806413,0.088041,56794.0,56788.0,0.729849]
[1725535806618,0.5148263,56794.0,56788.0,0.00104]
[1725535806820,0.088057,56784.0,56782.0,0.18806]
[1725535807019,0.28129021,56784.0,56782.0,0.18806]
[1725535807224,0.39847336,56783.0,56782.0,0.18806]
[1725535807525,0.0540263,56783.0,56782.0,0.2018748]
[1725535807918,0.0540263,56783.0,56782.0,0.3418748]
[1725535808120,0.0540263,56783.0,56782.0,0.3558748]
[1725535808318,0.0540263,56787.0,56782.0,0.3558748]
[1725535808629,0.088052,56787.0,56786.0,0.004]
[1725535809619,0.089052,56787.0,56786.0,0.004]
[1725535810222,0.088052,56787.0,56786.0,0.004]
[1725535810422,0.089052,56787.0,56786.0,0.018]
[1725535810914,0.089052,56787.0,56786.0,0.032]
[1725535812221,0.089052,56787.0,56786.0,0.272]
[1725535817832,0.001,56787.0,56786.0,0.360054]
[1725535818034,0.088007,56817.0,56786.0,0.360054]
[1725535818035,0.448819,56809.0,56793.0,0.088042]
[1725535818229,0.448818,56809.0,56808.0,0.004]
[1725535818435,0.688818,56809.0,56808.0,0.004]
[1725535819426,0.693818,56809.0,56808.0,0.004]
[1725535820543,0.698818,56809.0,56808.0,0.004]
[1725535821037,0.693818,56809.0,56808.0,0.004]
[1725535821233,0.693818,56809.0,56808.0,0.005]
[1725535821432,0.688818,56809.0,56808.0,0.008]
[1725535821625,0.448818,56809.0,56808.0,0.008]
[1725535821943,0.448818,56809.0,56808.0,0.01]
[1725535822239,0.3608,56809.0,56808.0,0.09802]
[1725535822428,0.088013,56813.0,56808.0,0.09802]
[1725535822627,0.088014,56812.0,56810.0,0.24]
[1725535823229,0.088015,56811.0,56810.0,0.24]
[1725535823430,0.088015,56811.0,56808.0,0.09102]
[1725535824136,0.088017,56810.0,56808.0,0.08802]
[1725535824436,0.088017,56810.0,56807.0,0.24]
[1725535824437,0.088018,56809.0,56807.0,0.24]
[1725535824640,0.088018,56809.0,56808.0,0.004]
[1725535825332,0.088018,56809.0,56808.0,0.009]
[1725535827536,0.088018,56809.0,56808.0,0.09602]
[1725535827743,0.088018,56809.0,56808.0,0.09202]
[1725535827938,0.088018,56809.0,56808.0,0.33702]
[1725535828141,0.088014,56812.0,56809.0,0.088018]
[1725535828333,0.3648,56814.0,56812.0,0.088013]
[1725535828535,0.088012,56813.0,56812.0,0.088013]
[1725535829343,0.004,56814.0,56813.0,0.088012]
[1725535829543,0.004,56814.0,56813.0,0.090012]
[1725535830845,0.004,56814.0,56813.0,1.218052]
[1725535831040,0.004,56814.0,56813.0,1.27063659]
[1725535831241,0.004,56814.0,56813.0,1.218052]
[1725535831445,0.004,56814.0,56813.0,0.14254234]
[1725535831743,0.004,56814.0,56813.0,0.090012]
[1725535832546,0.004,56814.0,56813.0,0.01625715]
[1725535832844,0.42002,56814.0,56813.0,0.01625715]
[1725535833036,0.51652,56814.0,56813.0,0.01625715]
[1725535834760,0.51652,56814.0,56813.0,0.002]
[1725535838553,0.09201,56814.0,56813.0,0.002]
[1725535838758,0.004,56814.0,56813.0,0.090012]
[1725535841865,0.004,56814.0,56813.0,0.14254234]
[1725535842161,0.004,56814.0,56813.0,0.090012]
[1725535844158,0.004,56814.0,56813.0,0.16039599]
[1725535844560,0.09201,56814.0,56813.0,0.1601672]
[1725535844755,0.33201,56814.0,56813.0,0.002]
[1725535844963,0.09201,56814.0,56813.0,0.002]
[1725535845261,0.09201,56814.0,56813.0,0.242]
[1725535846456,0.09201,56814.0,56813.0,0.3121552]
[1725535846656,0.09201,56814.0,56813.0,0.242]
[1725535848164,0.09201,56814.0,56813.0,0.330012]
[1725535848761,0.004,56814.0,56813.0,0.330012]
[1725535850364,0.004,56814.0,56813.0,0.242]
[1725535850568,0.004,56814.0,56813.0,0.002]
[1725535850569,0.09201,56814.0,56813.0,0.002]
[1725535852765,0.42002,56814.0,56813.0,0.002]
[1725535855663,0.42002,56814.0,56813.0,0.05467639]
[1725535856461,0.42002,56814.0,56813.0,0.002]
[1725535856666,0.18002,56814.0,56813.0,0.002]
[1725535859171,0.18002,56814.0,56813.0,0.0721552]
[1725535859572,0.18002,56814.0,56813.0,0.002]
[1725535859867,0.18002,56814.0,56813.0,0.0721552]
[1725535860772,0.42002,56814.0,56813.0,0.002]
[1725535860969,0.42002,56814.0,56813.0,0.05476496]
[1725535861371,0.42002,56814.0,56813.0,0.05676496]
[1725535861672,0.42002,56814.0,56813.0,0.05876496]
[1725535861889,0.42002,56814.0,56813.0,0.006]
[1725535862064,0.42002,56814.0,56813.0,0.004]
[1725535862374,0.42002,56814.0,56813.0,0.002]
[1725535862869,0.09201,56814.0,56813.0,0.242]
[1725535863679,0.09201,56814.0,56813.0,0.3121552]
[1725535863973,0.09201,56814.0,56813.0,0.4001672]
[1725535864166,0.09201,56814.0,56813.0,0.330012]
[1725535865279,0.004,56814.0,56813.0,0.330012]
[1725535865772,0.004,56814.0,56813.0,0.55211144]
[1725535866084,0.087991,56827.0,56813.0,0.37611613]
[1725535866085,0.24,56826.0,56813.0,0.37611613]
[1725535866376,0.087999,56822.0,56820.0,0.31033382]
[1725535867882,0.087999,56822.0,56821.0,0.088]
[1725535868383,0.087993,56826.0,56820.0,0.31033382]
[1725535868572,0.0465,56824.0,56823.0,0.331996]
[1725535868873,0.0465,56824.0,56823.0,0.692796]
[1725535868874,0.36887548,56824.0,56823.0,0.692796]
[1725535869183,0.05401315,56824.0,56823.0,0.692796]
[1725535870877,0.05401315,56824.0,56823.0,0.693796]
[1725535871077,0.05401315,56824.0,56823.0,0.332996]
[1725535871277,0.50280815,56824.0,56823.0,0.006]
[1725535871674,0.76644542,56824.0,56823.0,0.006]
[1725535871973,0.76632664,56824.0,56823.0,0.006]
[1725535872179,0.59080315,56824.0,56823.0,0.006]
[1725535873384,0.50280815,56824.0,56823.0,0.006]
[1725535876780,0.448795,56824.0,56823.0,0.006]
[1725535878871,0.448795,56824.0,56823.0,0.093996]
[1725535883886,0.448795,56824.0,56823.0,0.006]
[1725535887288,0.448795,56824.0,56823.0,0.05873525]
[1725535887991,0.448795,56824.0,56823.0,0.006]
[1725535888885,0.448795,56824.0,56823.0,0.05873525]
[1725535889485,0.448795,56824.0,56823.0,0.006]
[1725535889982,0.448795,56824.0,56823.0,0.454796]
[1725535889983,0.087995,56824.0,56823.0,0.454796]
[1725535890189,0.087995,56824.0,56823.0,0.52512982]
[1725535890784,0.087991,56827.0,56826.0,0.087992]
[1725535890987,0.087991,56827.0,56826.0,0.331992]
[1725535891483,0.3608,56829.0,56828.0,0.087989]
[1725535891788,0.3608,56829.0,56828.0,0.091989]
[1725535892890,0.448787,56829.0,56828.0,0.092989]
[1725535893487,0.135482,56833.0,56830.0,0.087985]
[1725535893684,0.087982,56833.0,56831.0,0.244]
[1725535893886,0.087982,56833.0,56832.0,0.004]
[1725535894394,0.3608,56835.0,56834.0,0.087979]
[1725535894689,0.3608,56835.0,56834.0,0.331979]
[1725535894882,0.3608,56835.0,56834.0,0.34064223]
[1725535895284,0.13667,56841.0,56837.0,0.087973]
[1725535895480,0.13667,56841.0,56840.0,0.244]
[1725535896402,0.08797,56841.0,56840.0,0.244]
[1725535896898,0.0488,56844.0,56840.0,0.244]
[1725535897087,0.0488,56844.0,56843.0,0.327965]
[1725535897287,0.0488,56844.0,56843.0,0.331965]
[1725535897491,0.087963,56845.0,56843.0,0.331965]
[1725535897697,0.087963,56845.0,56844.0,0.004]
[1725535898200,0.36228,56855.0,56844.0,0.3648]
[1725535898388,0.3772,56859.0,56853.0,0.244]
[1725535898584,0.133248,56854.0,56853.0,0.244]
[1725535898789,0.18723188,56854.0,56853.0,0.244]
[1725535898995,0.133248,56854.0,56853.0,0.004]
[1725535899191,0.133248,56854.0,56853.0,0.244]
[1725535899390,0.133248,56854.0,56853.0,0.004]
[1725535899689,0.133248,56854.0,56853.0,0.005]
[1725535900691,0.181648,56854.0,56853.0,0.005]
[1725535900890,0.181648,56854.0,56853.0,0.006]
[1725535903902,0.133248,56854.0,56853.0,0.006]
[1725535910121,0.087948,56854.0,56853.0,0.006]
[1725535911129,0.175896,56854.0,56853.0,0.006]
[1725535911428,0.263844,56854.0,56853.0,0.006]
[1725535911724,0.087969,56841.0,56838.0,0.00026403]
[1725535911918,0.087972,56839.0,56838.0,0.00026403]
[1725535912115,0.087972,56839.0,56838.0,0.01437478]
[1725535912317,0.087972,56839.0,56838.0,0.00026403]
[1725535912927,0.776744,56839.0,56838.0,0.00026403]
[1725535913115,0.688772,56839.0,56838.0,0.00026403]
[1725535913829,0.688772,56839.0,56838.0,0.00326403]
[1725535914230,0.448772,56839.0,56838.0,0.00326403]
[1725535914731,0.448772,56839.0,56838.0,0.00626403]
[1725535915731,0.448772,56839.0,56838.0,0.00226403]
[1725535916229,0.448772,56839.0,56838.0,0.00326403]
[1725535917529,0.448772,56839.0,56838.0,0.00126403]
[1725535917732,0.448772,56839.0,56838.0,0.00226403]
[1725535918431,0.448772,56839.0,56838.0,0.00426403]
[1725535918629,0.448772,56839.0,56838.0,0.00526403]
[1725535919226,0.448772,56839.0,56838.0,0.00226403]
[1725535919828,0.448772,56839.0,56838.0,0.00426403]
[1725535921025,0.448772,56839.0,56838.0,0.00626403]
[1725535921730,0.448772,56839.0,56838.0,0.00326403]
[1725535921930,0.448772,56839.0,56838.0,0.00626403]
[1725535922129,0.448772,56839.0,56838.0,0.00726403]
[1725535922833,0.448772,56839.0,56838.0,0.00426403]
[1725535924238,0.448772,56839.0,56838.0,0.00126403]
[1725535924436,0.448772,56839.0,56838.0,0.00226403]
[1725535924846,0.087969,56841.0,56838.0,0.09023703]
[1725535925030,0.3608,56845.0,56840.0,0.244]
[1725535925031,0.087966,56843.0,56840.0,0.244]
[1725535925232,0.3608,56845.0,56844.0,0.087964]
[1725535925430,0.3608,56845.0,56844.0,0.091964]
[1725535925837,0.08796,56847.0,56846.0,0.087961]
[1725535926032,0.448755,56850.0,56847.0,0.087958]
[1725535926233,0.448755,56850.0,56849.0,0.244]
[1725535926434,0.095,56855.0,56849.0,0.6008]
[1725535926435,0.42105,56854.0,56849.0,0.6008]
[1725535926631,0.42105,56854.0,56853.0,0.244]
[1725535926632,0.09195,56854.0,56853.0,0.244]
[1725535928736,0.09295,56854.0,56853.0,0.244]
[1725535929744,0.09295,56854.0,56853.0,0.25797698]
[1725535931333,0.1809,56854.0,56853.0,0.004]
[1725535931638,0.09195,56854.0,56853.0,0.008]
[1725535932133,0.09195,56854.0,56853.0,0.012]
[1725535932443,0.09195,56854.0,56853.0,0.011]
[1725535932746,0.09195,56854.0,56853.0,0.007]
[1725535934537,0.09195,56854.0,56853.0,0.004]
[1725535935233,0.09195,56854.0,56853.0,0.005]
[1725535935444,0.09195,56854.0,56853.0,0.011]
[1725535935829,0.09195,56854.0,56853.0,0.017]
[1725535936239,0.09195,56854.0,56853.0,0.016]
[1725535936444,0.09195,56854.0,56853.0,0.009]
[1725535936748,0.09195,56854.0,56853.0,0.014]
[1725535937132,0.1799,56854.0,56853.0,0.014]
[1725535938150,0.1799,56854.0,56853.0,0.009]
[1725535938343,0.1799,56854.0,56853.0,0.012]
[1725535938843,0.1799,56854.0,56853.0,0.008]
[1725535939047,0.1599,56854.0,56853.0,0.004]
[1725535939453,0.21388571,56854.0,56853.0,0.004]
[1725535939952,0.12593469,56854.0,56853.0,0.244]
[1725535940853,0.07195,56854.0,56853.0,0.244]
[1725535941949,0.07195,56854.0,56853.0,0.249]
[1725535942150,0.07195,56854.0,56853.0,0.252]
[1725535942655,0.07195,56854.0,56853.0,0.249]
[1725535942851,0.087943,56858.0,56853.0,1.38168]
[1725535943051,0.087943,56858.0,56857.0,0.244]
[1725535943854,0.087943,56858.0,56857.0,0.3846508]
[1725535945456,0.087943,56858.0,56857.0,0.3886508]
[1725535945667,0.087943,56858.0,56857.0,0.3926508]
[1725535946454,0.087943,56858.0,56857.0,0.3047068]
[1725535947269,0.087943,56858.0,56857.0,0.252]
[1725535948164,0.087943,56858.0,56857.0,0.3047068]
[1725535948468,0.415886,56858.0,56857.0,0.07865794]
[1725535948771,0.415886,56858.0,56857.0,0.012]
[1725535949560,0.175886,56858.0,56857.0,0.012]
[1725535949964,0.175886,56858.0,56857.0,0.008]
[1725535950168,0.087943,56858.0,56857.0,0.008]
[1725535950371,0.087943,56858.0,56857.0,0.248]
[1725535951271,0.087943,56858.0,56857.0,0.2967068]
[1725535951773,0.087943,56858.0,56857.0,0.2977068]
[1725535952274,0.087938,56861.0,56860.0,0.087937]
[1725535952573,0.087938,56861.0,56860.0,0.244]
[1725535952777,0.087938,56861.0,56860.0,0.6048]
[1725535953279,0.087938,56861.0,56860.0,0.67513382]
[1725535953776,0.087938,56861.0,56860.0,0.6048]
[1725535954287,0.087938,56861.0,56860.0,0.244]
[1725535954581,0.087938,56861.0,56860.0,0.246]
[1725535954769,0.087938,56861.0,56860.0,0.006]
[1725535958672,0.087938,56861.0,56860.0,0.07633382]
[1725535959070,0.087938,56861.0,56860.0,0.006]
[1725535959376,0.087938,56861.0,56860.0,0.246]
[1725535962279,0.415876,56861.0,56860.0,0.006]
[1725535962767,0.415876,56861.0,56860.0,0.005]
[1725535962974,0.415876,56861.0,56860.0,0.011]
[1725535963172,0.503814,56861.0,56860.0,0.011]
[1725535963365,0.415876,56861.0,56860.0,0.011]
[1725535964568,0.415876,56861.0,56860.0,0.004]
[1725535964877,0.415876,56861.0,56860.0,0.011]
[1725535965264,0.415876,56861.0,56860.0,0.004]
[1725535965783,0.415876,56861.0,56860.0,0.01808598]
[1725535965983,0.415876,56861.0,56860.0,0.244]
[1725535965984,0.087938,56861.0,56860.0,0.244]
[1725535966175,0.087938,56861.0,56860.0,0.31433382]
[1725535966484,0.087938,56861.0,56860.0,0.244]
[1725535967771,0.087938,56861.0,56860.0,0.331939]
[1725535967972,0.087938,56861.0,56860.0,0.336939]
[1725535968377,0.087938,56861.0,56860.0,0.341939]
[1725535968779,0.087938,56861.0,56860.0,0.35562315]
[1725535969176,0.087938,56861.0,56860.0,0.02768415]
[1725535970084,0.415876,56861.0,56860.0,0.014]
[1725535970385,0.415876,56861.0,56860.0,0.06668334]
[1725535970871,0.415876,56861.0,56860.0,0.05668334]
[1725535971071,0.415876,56861.0,56860.0,0.013]
[1725535971473,0.415876,56861.0,56860.0,0.008]
[1725535971880,0.175876,56861.0,56860.0,0.004]
[1725535972080,0.415876,56861.0,56860.0,0.004]
[1725535972671,0.087938,56861.0,56860.0,0.004]
[1725535974179,0.087938,56861.0,56860.0,0.006]
[1725535974776,0.087938,56861.0,56860.0,0.004]
[1725535974983,0.087938,56861.0,56860.0,0.005]
[1725535975176,0.087938,56861.0,56860.0,0.006]
[1725535975577,0.087938,56861.0,56860.0,0.005]
[1725535975785,0.087938,56861.0,56860.0,0.006]
[1725535975980,0.087938,56861.0,56860.0,0.007]
[1725535976286,0.3608,56875.0,56862.0,0.175872]
[1725535976482,0.087916,56875.0,56874.0,0.24]
[1725535976782,0.087916,56875.0,56874.0,0.244]
[1725535977277,0.24144,56883.0,56874.0,0.244]
[1725535977278,0.3608,56892.0,56874.0,0.244]
[1725535977480,0.3608,56893.0,56891.0,0.244]
[1725535977685,0.0488,56892.0,56891.0,0.244]
[1725535977883,0.13669,56892.0,56891.0,0.004]
[1725535978077,0.17973329,56892.0,56891.0,0.004]
[1725535978883,0.17973329,56892.0,56891.0,0.005]
[1725535979086,0.70705329,56892.0,56891.0,0.005]
[1725535979276,0.66401,56892.0,56891.0,0.005]
[1725535979678,0.13669,56892.0,56891.0,0.005]
[1725535980483,0.66401,56892.0,56891.0,0.005]
[1725535980677,1.30705849,56892.0,56891.0,0.006]
[1725535980884,1.30705894,56892.0,56891.0,0.006]
[1725535981078,1.26401,56892.0,56891.0,0.006]
[1725535984083,1.17612,56892.0,56877.0,0.00026379]
[1725535984282,0.087908,56880.0,56877.0,0.00026379]
[1725535984488,0.0951,56879.0,56877.0,0.00026379]
[1725535985096,0.327911,56878.0,56877.0,0.00026379]
[1725535985287,0.327911,56878.0,56877.0,0.00926379]
[1725535985487,1.455351,56878.0,56877.0,0.00926379]
[1725535985690,1.543262,56878.0,56877.0,0.01326379]
[1725535985982,0.087932,56865.0,56860.0,0.087938]
[1725535986301,0.24,56862.0,56858.0,0.00088]
[1725535986587,0.6008,56859.0,56856.0,0.087945]
[1725535986889,0.6008,56859.0,56857.0,0.087943]
[1725535988695,0.6008,56859.0,56857.0,0.094943]
[1725535988891,0.6008,56859.0,56857.0,0.100943]
[1725535989090,0.6008,56859.0,56857.0,0.099943]
[1725535989796,0.6008,56859.0,56858.0,0.087942]
[1725535990994,0.3608,56859.0,56858.0,0.087942]
[1725535991991,0.3608,56859.0,56858.0,0.097942]
[1725535992994,0.688741,56859.0,56858.0,0.01]
[1725535994293,0.776682,56859.0,56858.0,0.01]
[1725535994798,0.776682,56859.0,56858.0,0.005]
[1725535994999,0.08795,56853.0,56852.0,0.36106379]
[1725535995299,0.32795,56853.0,56852.0,0.36106379]
[1725535996100,0.32795,56853.0,56852.0,0.36806379]
[1725535996502,0.32795,56853.0,56852.0,0.00726379]
[1725535997201,0.32795,56853.0,56852.0,0.01426379]
[1725535997802,0.4159,56853.0,56852.0,0.01426379]
[1725535998093,0.4159,56853.0,56852.0,0.01626379]
[1725535998703,1.63153,56853.0,56852.0,0.01626379]
[1725536000895,0.087973,56838.0,56837.0,0.3608]
[1725536001508,0.087973,56838.0,56837.0,0.448775]
[1725536002193,0.087973,56838.0,56837.0,0.462775]
[1725536002394,0.087973,56838.0,56837.0,0.476775]
[1725536002608,0.089973,56838.0,56837.0,0.476775]
[1725536004796,0.089973,56838.0,56837.0,0.115975]
[1725536014612,0.089973,56838.0,56837.0,0.16864456]
[1725536014809,0.089973,56838.0,56837.0,0.115975]
[1725536016116,0.089973,56838.0,56837.0,0.18620151]
[1725536016414,0.089973,56838.0,56837.0,0.115975]
[1725536016714,0.089973,56838.0,56837.0,0.18620151]
[1725536016906,0.089973,56838.0,56837.0,0.115975]
[1725536017504,0.089973,56838.0,56837.0,0.18620151]
[1725536019417,0.04596241,56838.0,56837.0,0.18620151]
[1725536020617,0.04596241,56838.0,56837.0,0.355975]
[1725536023107,0.002,56838.0,56837.0,0.115975]
[1725536023308,0.002,56838.0,56837.0,0.355975]
[1725536024011,0.002,56838.0,56837.0,0.57794227]
[1725536024309,0.002,56838.0,56837.0,0.20389228]
[1725536024510,0.002,56838.0,56837.0,0.25002642]
[1725536026217,0.002,56838.0,56837.0,0.115975]
[1725536026414,0.002,56838.0,56837.0,0.20376825]
[1725536026613,0.002,56838.0,56837.0,0.25002486]
[1725536026814,0.329973,56838.0,56837.0,0.25002486]
[1725536027011,0.329973,56838.0,56837.0,0.115975]
[1725536027623,0.329973,56838.0,56837.0,0.25003187]
[1725536027822,0.329973,56838.0,56837.0,0.33790844]
[1725536028212,0.329973,56838.0,56837.0,0.25003033]
[1725536028824,0.329973,56838.0,56837.0,0.20384817]
[1725536029118,0.329973,56838.0,56837.0,0.115975]
[1725536029326,0.329973,56838.0,56837.0,0.20384817]
[1725536029526,0.329973,56838.0,56837.0,0.33790677]
[1725536029821,0.329973,56838.0,56837.0,0.3379068]
[1725536030018,0.329973,56838.0,56837.0,0.20385023]
[1725536030428,0.002,56838.0,56837.0,0.20385023]
[1725536030725,0.002,56838.0,56837.0,0.25002897]
[1725536032426,0.002,56838.0,56837.0,0.33800397]
[1725536032614,0.002,56838.0,56837.0,0.25002897]
[1725536035717,0.00026379,56843.0,56837.0,1.37786897]
[1725536035925,0.00026379,56843.0,56842.0,0.688767]
[1725536036228,0.0459,56851.0,56850.0,0.087955]
[1725536036522,0.0459,56851.0,56850.0,0.09886975]
[1725536037122,0.0459,56851.0,56850.0,0.089955]
[1725536038730,0.0459,56851.0,56850.0,0.099955]
[1725536038924,0.0479,56851.0,56850.0,0.109955]
[1725536039120,0.002,56851.0,56850.0,0.109955]
[1725536039724,0.002,56851.0,56850.0,0.709955]
[1725536039922,0.002,56851.0,56850.0,1.37165528]
[1725536041018,0.002,56851.0,56850.0,1.45961028]
[1725536041231,0.04686301,56856.0,56850.0,1.45961028]
[1725536041232,0.00026301,56856.0,56855.0,0.087947]
[1725536041431,0.00026301,56856.0,56855.0,0.690747]
[1725536042129,0.00026301,56856.0,56855.0,0.7783665]
[1725536042435,0.00026301,56856.0,56855.0,0.698747]
[1725536045136,0.00026301,56856.0,56855.0,0.76871005]
[1725536045346,0.00026301,56856.0,56855.0,0.698747]
[1725536045636,0.00026301,56856.0,56855.0,0.76870972]
[1725536045830,0.00026301,56856.0,56855.0,0.698747]
[1725536046031,0.00026301,56856.0,56855.0,0.337947]
[1725536046231,0.00026301,56856.0,56855.0,0.76869244]
[1725536049326,0.00026301,56856.0,56855.0,0.698747]
[1725536049530,0.00026301,56856.0,56855.0,0.786694]
[1725536049728,0.00026301,56856.0,56855.0,1.914334]
[1725536049933,0.0968,56867.0,56861.0,0.087938]
[1725536050240,0.0968,56867.0,56861.0,0.690738]
[1725536051248,0.0502,56862.0,56861.0,0.690738]
[1725536051442,0.0522,56862.0,56861.0,0.690738]
[1725536055837,0.004,56862.0,56861.0,0.778676]
[1725536056048,0.004,56862.0,56861.0,0.638676]
[1725536057544,0.004,56862.0,56861.0,0.450738]
[1725536058147,1.5924,56862.0,56849.0,0.05236196]
[1725536058349,0.087961,56846.0,56845.0,0.00026379]
[1725536058552,0.089961,56846.0,56845.0,0.00026379]
[1725536058850,0.087961,56846.0,56845.0,0.00026379]
[1725536059441,0.087961,56846.0,56845.0,0.01435592]
[1725536059646,0.087961,56846.0,56845.0,0.00026379]
[1725536060050,0.327961,56846.0,56845.0,0.00026379]
[1725536061137,0.328961,56846.0,56845.0,0.01426379]
[1725536061339,0.329961,56846.0,56845.0,0.02826379]
[1725536065353,0.417922,56846.0,56845.0,0.02826379]
[1725536067354,0.778722,56846.0,56845.0,0.02826379]
[1725536069554,0.538722,56846.0,56845.0,0.02826379]
[1725536069866,0.778722,56846.0,56845.0,0.02826379]
[1725536074261,0.778722,56846.0,56845.0,0.71702579]
[1725536074262,0.002,56846.0,56845.0,0.71702579]
[1725536074463,0.002,56850.0,56845.0,0.71702579]
[1725536074464,0.08796,56847.0,56845.0,0.62906379]
[1725536074655,0.087961,56846.0,56845.0,0.02826379]
[1725536077261,0.001,56846.0,56845.0,0.11622579]
[1725536079055,0.001,56846.0,56845.0,0.16858775]
[1725536079448,0.001,56846.0,56845.0,0.11622579]
[1725536084367,0.001,56846.0,56845.0,0.16858775]
[1725536085064,0.001,56846.0,56845.0,0.11622579]
[1725536085261,0.001,56846.0,56845.0,0.18617123]
[1725536085959,0.001,56846.0,56845.0,0.11622579]
[1725536086361,0.002,56850.0,56849.0,0.087956]
[1725536086569,0.002,56850.0,56849.0,0.69769064]
[1725536086754,0.002,56850.0,56849.0,0.69969064]
[1725536087655,0.003,56850.0,56849.0,0.71069064]
[1725536088458,0.004,56850.0,56849.0,0.72169064]
[1725536089565,0.331955,56850.0,56849.0,0.39373464]
[1725536090155,0.091955,56850.0,56849.0,0.40758485]
[1725536091761,0.091955,56850.0,56849.0,0.09038114]
[1725536091964,0.17991,56850.0,56849.0,0.03785021]
[1725536092264,1.442385,56850.0,56849.0,0.024]
[1725536092568,1.442385,56850.0,56845.0,0.00026379]
[1725536092569,0.175922,56846.0,56845.0,0.00026379]
[1725536092872,0.417922,56846.0,56845.0,0.00026379]
[1725536093872,0.418922,56846.0,56845.0,0.01426379]
[1725536095177,0.419922,56846.0,56845.0,0.02426379]
[1725536102286,0.087975,56837.0,56836.0,0.05253093]
[1725536102583,0.087983,56832.0,56831.0,0.05253093]
[1725536102772,0.175972,56830.0,56829.0,0.05253093]
[1725536102968,0.087987,56829.0,56828.0,0.05253093]
[1725536103183,0.087989,56828.0,56827.0,0.05253093]
[1725536103372,0.089989,56828.0,56827.0,0.05253093]
[1725536103575,0.087989,56828.0,56827.0,0.05253093]
[1725536103781,0.065989,56828.0,56827.0,0.05253093]
[1725536104079,0.08799,56827.0,56826.0,0.05253093]
[1725536104472,0.08199,56827.0,56826.0,0.05253093]
[1725536104683,0.32199,56827.0,56826.0,0.05253093]
[1725536105184,0.087992,56826.0,56825.0,0.05253093]
[1725536105370,0.087992,56826.0,56825.0,0.14052393]
[1725536105371,0.081992,56826.0,56825.0,0.14052393]
[1725536105575,0.002,56826.0,56825.0,0.39801597]
[1725536105880,0.002,56826.0,56825.0,0.327993]
[1725536106077,0.002,56826.0,56825.0,0.39796816]
[1725536106277,0.002,56826.0,56825.0,0.327993]
[1725536106885,0.003,56826.0,56825.0,0.327993]
[1725536107290,0.004,56826.0,56825.0,0.327993]
[1725536110884,0.091992,56826.0,56825.0,0.15794672]
[1725536111078,0.004,56826.0,56825.0,0.087993]
[1725536112284,0.002,56832.0,56825.0,1.12792]
[1725536112487,0.002,56832.0,56831.0,0.38245227]
[1725536112687,0.002,56832.0,56831.0,0.329984]
[1725536112992,0.002,56832.0,56831.0,1.306648]
[1725536113183,0.00026379,56833.0,56832.0,0.087983]
[1725536113378,0.00026379,56833.0,56832.0,0.182583]
[1725536113588,0.0477,56849.0,56832.0,1.310463]
[1725536113793,0.0477,56849.0,56848.0,0.450758]
[1725536114087,0.0477,56849.0,56848.0,0.45975531]
[1725536114389,0.087953,56851.0,56848.0,0.09895531]
[1725536114780,0.087953,56851.0,56850.0,0.002]
[1725536115980,0.088953,56851.0,56850.0,0.002]
[1725536116186,0.001,56851.0,56850.0,0.089955]
[1725536116495,0.373342,56859.0,56850.0,0.05441833]
[1725536116788,0.373342,56859.0,56855.0,0.002]
[1725536118887,0.373342,56859.0,56858.0,0.087942]
[1725536118888,0.0454,56859.0,56858.0,0.087942]
[1725536119088,0.448735,56863.0,56860.0,0.087939]
[1725536119290,0.00148,56867.0,56862.0,0.6008]
[1725536119485,0.008,56874.0,56866.0,0.242]
[1725536119486,0.087921,56873.0,56866.0,0.242]
[1725536119688,0.087921,56873.0,56872.0,0.002]
[1725536119888,0.087921,56873.0,56869.0,0.087924]
[1725536120094,0.002,56870.0,56869.0,0.087924]
[1725536122895,0.004,56870.0,56869.0,0.087924]
[1725536123097,0.3648,56870.0,56866.0,0.01577864]
[1725536123290,0.3648,56870.0,56867.0,0.087928]
[1725536123291,0.24,56868.0,56867.0,0.087928]
[1725536124785,0.327927,56868.0,56867.0,0.087928]
[1725536125295,0.087928,56867.0,56866.0,0.01577864]
[1725536125486,0.089928,56867.0,56866.0,0.01577864]
[1725536126898,0.091928,56867.0,56866.0,0.01577864]
[1725536127199,0.091928,56867.0,56866.0,0.25577864]
[1725536129807,0.004,56867.0,56866.0,0.34370864]
[1725536130596,0.004,56867.0,56866.0,0.10370864]
[1725536131793,0.091928,56867.0,56866.0,0.01577864]
[1725536141119,0.091928,56867.0,56866.0,0.10370864]
[1725536141418,0.004,56867.0,56866.0,0.43163864]
[1725536141606,0.004,56867.0,56866.0,0.47753864]